[Event "Betsys MČR v online bleskovém šachu 2021"]
[Site "Chess.com"]
[Date "2021.04.17"]
[Round "9"]
[White "Tobish"]
[Black "dino5517"]
[Result "1-0"]
[WhiteElo "1683"]
[BlackElo "1388"]
[TimeControl "180+1"]
[EndTime "10:30:50 PDT"]
[Termination "Uživatel Tobish zvítězil na čas"]

1. e4 {[%clk 0:03:00.9]} 1... e5 {[%clk 0:03:00.1]} 2. Nf3 {[%clk 0:02:59.9]}
2... Nf6 {[%clk 0:02:59.8]} 3. Nxe5 {[%clk 0:03:00.2]} 3... Nc6 {[%clk
0:02:59.4]} 4. Nxc6 {[%clk 0:02:59.6]} 4... dxc6 {[%clk 0:02:59.8]} 5. Nc3
{[%clk 0:02:59.9]} 5... Bc5 {[%clk 0:02:59.3]} 6. d3 {[%clk 0:02:55.7]} 6... Qd6
{[%clk 0:02:57.4]} 7. Be2 {[%clk 0:02:50.5]} 7... h5 {[%clk 0:02:55]} 8. Be3
{[%clk 0:02:46.4]} 8... Bxe3 {[%clk 0:02:49.9]} 9. fxe3 {[%clk 0:02:46.4]} 9...
Ng4 {[%clk 0:02:46.1]} 10. Qd2 {[%clk 0:02:41.7]} 10... Nxh2 {[%clk 0:02:32.7]}
11. O-O-O {[%clk 0:02:39]} 11... Ng4 {[%clk 0:02:28]} 12. Rdf1 {[%clk
0:02:34.7]} 12... Be6 {[%clk 0:02:25.5]} 13. d4 {[%clk 0:02:33.5]} 13... O-O-O
{[%clk 0:02:21.4]} 14. Bd3 {[%clk 0:02:21.2]} 14... Qg3 {[%clk 0:02:15.7]} 15.
e5 {[%clk 0:02:17.9]} 15... Qxe3 {[%clk 0:02:05]} 16. Qxe3 {[%clk 0:02:03.8]}
16... Nxe3 {[%clk 0:02:03.7]} 17. Rf3 {[%clk 0:02:04.2]} 17... Ng4 {[%clk
0:01:48.6]} 18. Ne2 {[%clk 0:01:55.3]} 18... g5 {[%clk 0:01:43.5]} 19. c3 {[%clk
0:01:52.4]} 19... h4 {[%clk 0:01:41.9]} 20. Ng1 {[%clk 0:01:47.5]} 20... Nh6
{[%clk 0:01:30.4]} 21. Rf6 {[%clk 0:01:44.4]} 21... Ng4 {[%clk 0:01:18.5]} 22.
Rf3 {[%clk 0:01:40.9]} 22... Rdf8 {[%clk 0:01:13.6]} 23. Nh3 {[%clk 0:01:39]}
23... f6 {[%clk 0:01:02.1]} 24. exf6 {[%clk 0:01:33]} 24... Nxf6 {[%clk
0:01:01.2]} 25. Nxg5 {[%clk 0:01:30.9]} 25... Bd5 {[%clk 0:00:51.2]} 26. Rf4
{[%clk 0:01:14.2]} 26... Rfg8 {[%clk 0:00:36.6]} 27. Bf5+ {[%clk 0:01:07.2]}
27... Kb8 {[%clk 0:00:28.2]} 28. Ne4 {[%clk 0:00:50.9]} 28... Nxe4 {[%clk
0:00:23.3]} 29. Bxe4 {[%clk 0:00:50.5]} 29... Bxe4 {[%clk 0:00:20.4]} 30. Rxe4
{[%clk 0:00:50.8]} 30... h3 {[%clk 0:00:19.6]} 31. gxh3 {[%clk 0:00:48.3]} 31...
Rg3 {[%clk 0:00:18.2]} 32. h4 {[%clk 0:00:47.4]} 32... a6 {[%clk 0:00:17]} 33.
Kc2 {[%clk 0:00:45.5]} 33... Ka7 {[%clk 0:00:16]} 34. Kb3 {[%clk 0:00:44.9]}
34... Kb6 {[%clk 0:00:15.5]} 35. Kc4 {[%clk 0:00:43.1]} 35... a5 {[%clk
0:00:13]} 36. h5 {[%clk 0:00:39.5]} 36... Ka6 {[%clk 0:00:11.8]} 37. h6 {[%clk
0:00:36.5]} 37... Rg6 {[%clk 0:00:10.4]} 38. h7 {[%clk 0:00:34.9]} 38... Rg7
{[%clk 0:00:09.9]} 39. Reh4 {[%clk 0:00:34.7]} 39... b5+ {[%clk 0:00:07.7]} 40.
Kb3 {[%clk 0:00:33.5]} 40... a4+ {[%clk 0:00:05.4]} 41. Kb4 {[%clk 0:00:32.7]}
41... Kb6 {[%clk 0:00:04.7]} 42. Rh6 {[%clk 0:00:32.4]} 42... Rg2 {[%clk
0:00:03.4]} 43. R1h2 {[%clk 0:00:29]} 43... Rg5 {[%clk 0:00:01.7]} 44. Ka3
{[%clk 0:00:24.5]} 1-0

[Event "Betsys MČR v online bleskovém šachu 2021"]
[Site "Chess.com"]
[Date "2021.04.17"]
[Round "9"]
[White "horvi1"]
[Black "Bolavey_Kotnik"]
[Result "0-1"]
[WhiteElo "2234"]
[BlackElo "2367"]
[TimeControl "180+1"]
[EndTime "10:30:51 PDT"]
[Termination "Uživatel Bolavey_Kotnik zvítězil po vzdání soupeře"]

1. Nf3 {[%clk 0:03:00.9]} 1... Nf6 {[%clk 0:02:59.4]} 2. c4 {[%clk 0:03:00.8]}
2... d6 {[%clk 0:02:59.4]} 3. Nc3 {[%clk 0:03:00.5]} 3... Nbd7 {[%clk
0:02:59.2]} 4. d4 {[%clk 0:03:00.3]} 4... e5 {[%clk 0:02:58.5]} 5. e4 {[%clk
0:02:56.3]} 5... Be7 {[%clk 0:02:58.3]} 6. Be2 {[%clk 0:02:51.8]} 6... O-O
{[%clk 0:02:57.7]} 7. O-O {[%clk 0:02:49.5]} 7... a5 {[%clk 0:02:57]} 8. Bg5
{[%clk 0:02:47]} 8... h6 {[%clk 0:02:52.7]} 9. Bh4 {[%clk 0:02:46.7]} 9... c6
{[%clk 0:02:51.3]} 10. Bg3 {[%clk 0:02:43.9]} 10... Nh5 {[%clk 0:02:19.4]} 11.
Qd2 {[%clk 0:02:15.1]} 11... Nxg3 {[%clk 0:02:16]} 12. fxg3 {[%clk 0:02:12.3]}
12... Qc7 {[%clk 0:01:57.9]} 13. Rad1 {[%clk 0:01:58.7]} 13... a4 {[%clk
0:01:51.7]} 14. Kh1 {[%clk 0:01:54.8]} 14... exd4 {[%clk 0:01:34.4]} 15. Qxd4
{[%clk 0:01:51.5]} 15... Ne5 {[%clk 0:01:30.1]} 16. Nxe5 {[%clk 0:01:31.9]}
16... dxe5 {[%clk 0:01:29.5]} 17. Qe3 {[%clk 0:01:31.6]} 17... Be6 {[%clk
0:01:23.6]} 18. h3 {[%clk 0:01:02.5]} 18... Qa5 {[%clk 0:01:13.7]} 19. Nb1
{[%clk 0:00:51.4]} 19... Rad8 {[%clk 0:00:50]} 20. Qc3 {[%clk 0:00:42.4]} 20...
Bb4 {[%clk 0:00:42.4]} 21. Qf3 {[%clk 0:00:36.4]} 21... Qb6 {[%clk 0:00:38.7]}
22. Nc3 {[%clk 0:00:30.3]} 22... a3 {[%clk 0:00:36.2]} 23. bxa3 {[%clk
0:00:28.7]} 23... Bxa3 {[%clk 0:00:29.1]} 24. Rb1 {[%clk 0:00:28.5]} 24... Qa7
{[%clk 0:00:28.1]} 25. Rb3 {[%clk 0:00:25.4]} 25... Bc5 {[%clk 0:00:28]} 26.
Rfb1 {[%clk 0:00:23]} 26... Rd7 {[%clk 0:00:28.3]} 27. a4 {[%clk 0:00:20.3]}
27... Rfd8 {[%clk 0:00:27.2]} 28. g4 {[%clk 0:00:17.8]} 28... Bd4 {[%clk
0:00:20.2]} 29. h4 {[%clk 0:00:10.2]} 29... Qc5 {[%clk 0:00:18.4]} 30. Rxb7
{[%clk 0:00:08.3]} 30... Qe7 {[%clk 0:00:18.3]} 31. Rxd7 {[%clk 0:00:07.1]}
31... Qxh4+ {[%clk 0:00:17.5]} 32. Qh3 {[%clk 0:00:07.3]} 32... Qxh3+ {[%clk
0:00:17.9]} 33. gxh3 {[%clk 0:00:07.6]} 33... Rxd7 {[%clk 0:00:17.8]} 34. Rb8+
{[%clk 0:00:06.7]} 34... Kh7 {[%clk 0:00:17.4]} 35. Nd1 {[%clk 0:00:05.9]} 35...
Ra7 {[%clk 0:00:15.3]} 36. Rb4 {[%clk 0:00:03.9]} 36... c5 {[%clk 0:00:14.8]}
37. Rb3 {[%clk 0:00:01.7]} 37... Rxa4 {[%clk 0:00:15.2]} 38. Kg2 {[%clk
0:00:02]} 38... Bxc4 {[%clk 0:00:11.7]} 39. Kf3 {[%clk 0:00:02.9]} 39... Bxb3
{[%clk 0:00:10.3]} 0-1

[Event "Betsys MČR v online bleskovém šachu 2021"]
[Site "Chess.com"]
[Date "2021.04.17"]
[Round "9"]
[White "MartinCerveny"]
[Black "berny643"]
[Result "1-0"]
[WhiteElo "2667"]
[BlackElo "2567"]
[TimeControl "180+1"]
[EndTime "10:30:53 PDT"]
[Termination "Uživatel MartinCerveny zvítězil matem"]

1. d4 {[%clk 0:03:00.9]} 1... Nf6 {[%clk 0:02:59.2]} 2. Nf3 {[%clk 0:02:59.9]}
2... e6 {[%clk 0:02:59.6]} 3. g3 {[%clk 0:02:59.9]} 3... c5 {[%clk 0:02:57.4]}
4. c3 {[%clk 0:02:57.4]} 4... b6 {[%clk 0:02:56]} 5. Bg2 {[%clk 0:02:57.5]} 5...
Bb7 {[%clk 0:02:55.6]} 6. O-O {[%clk 0:02:57.7]} 6... Be7 {[%clk 0:02:55.3]} 7.
Bf4 {[%clk 0:02:56.3]} 7... O-O {[%clk 0:02:54.3]} 8. h3 {[%clk 0:02:56.4]} 8...
d6 {[%clk 0:02:52.3]} 9. g4 {[%clk 0:02:55.8]} 9... Qc7 {[%clk 0:02:48.4]} 10.
Bh2 {[%clk 0:02:51.5]} 10... Nbd7 {[%clk 0:02:43.6]} 11. Nbd2 {[%clk 0:02:45.5]}
11... Rfe8 {[%clk 0:02:37.8]} 12. Re1 {[%clk 0:02:44.9]} 12... h6 {[%clk
0:02:28.8]} 13. e4 {[%clk 0:02:44.1]} 13... e5 {[%clk 0:02:28.3]} 14. d5 {[%clk
0:02:28.7]} 14... Nf8 {[%clk 0:02:17.5]} 15. Nf1 {[%clk 0:02:28.6]} 15... b5
{[%clk 0:02:11.2]} 16. Ng3 {[%clk 0:02:27.6]} 16... c4 {[%clk 0:02:04.1]} 17.
Qd2 {[%clk 0:02:24.5]} 17... Ng6 {[%clk 0:02:01.2]} 18. Nf5 {[%clk 0:02:18.9]}
18... Bf8 {[%clk 0:02:01.1]} 19. g5 {[%clk 0:02:06.9]} 19... hxg5 {[%clk
0:01:58.9]} 20. Qxg5 {[%clk 0:02:06.7]} 20... Nh7 {[%clk 0:01:51.7]} 21. Qd2
{[%clk 0:02:00]} 21... Bc8 {[%clk 0:01:40.4]} 22. Kh1 {[%clk 0:01:47.3]} 22...
Bd7 {[%clk 0:01:29.8]} 23. h4 {[%clk 0:01:26.6]} 23... Qc5 {[%clk 0:01:20.7]}
24. h5 {[%clk 0:01:22.1]} 24... Nf4 {[%clk 0:01:20.2]} 25. Bxf4 {[%clk
0:01:21.3]} 25... exf4 {[%clk 0:01:20]} 26. N3d4 {[%clk 0:01:20.1]} 26... g6
{[%clk 0:00:59.9]} 27. hxg6 {[%clk 0:01:14.4]} 27... fxg6 {[%clk 0:00:59.6]} 28.
Nh4 {[%clk 0:01:12.8]} 28... Re5 {[%clk 0:00:39.7]} 29. Nxg6 {[%clk 0:01:05.8]}
29... Rh5+ {[%clk 0:00:39.4]} 30. Kg1 {[%clk 0:01:05.8]} 30... Rg5 {[%clk
0:00:39.9]} 31. Nxf4 {[%clk 0:01:00.4]} 31... Bh6 {[%clk 0:00:37.2]} 32. Qe2
{[%clk 0:00:33.1]} 32... Kh8 {[%clk 0:00:33.7]} 33. Nde6 {[%clk 0:00:31.7]}
33... Bxe6 {[%clk 0:00:32.1]} 34. Nxe6 {[%clk 0:00:31.6]} 34... Rxg2+ {[%clk
0:00:30]} 35. Kxg2 {[%clk 0:00:31]} 35... Rg8+ {[%clk 0:00:25.5]} 36. Kf1 {[%clk
0:00:31.1]} 36... Qc8 {[%clk 0:00:23.8]} 37. Qh5 {[%clk 0:00:30.6]} 37... Bg7
{[%clk 0:00:11.1]} 38. Ke2 {[%clk 0:00:30.1]} 38... Be5 {[%clk 0:00:09.9]} 39.
Rh1 {[%clk 0:00:29.5]} 39... Qd7 {[%clk 0:00:09.8]} 40. Rag1 {[%clk 0:00:28]}
40... Rxg1 {[%clk 0:00:08.3]} 41. Rxg1 {[%clk 0:00:28.9]} 41... Qe7 {[%clk
0:00:08.2]} 42. Rh1 {[%clk 0:00:26]} 42... b4 {[%clk 0:00:07.3]} 43. f4 {[%clk
0:00:25.2]} 43... bxc3 {[%clk 0:00:03.5]} 44. fxe5 {[%clk 0:00:24.2]} 44... cxb2
{[%clk 0:00:04.4]} 45. exd6 {[%clk 0:00:24]} 45... Qb7 {[%clk 0:00:03.1]} 46.
Qe8# {[%clk 0:00:21.6]} 1-0

[Event "Betsys MČR v online bleskovém šachu 2021"]
[Site "Chess.com"]
[Date "2021.04.17"]
[Round "9"]
[White "Svisthorsky"]
[Black "SajdlJosef"]
[Result "0-1"]
[WhiteElo "1460"]
[BlackElo "1829"]
[TimeControl "180+1"]
[EndTime "10:30:53 PDT"]
[Termination "Uživatel SajdlJosef zvítězil na čas"]

1. d4 {[%clk 0:03:00.9]} 1... d5 {[%clk 0:02:49.9]} 2. c4 {[%clk 0:03:00.8]}
2... c6 {[%clk 0:02:49.5]} 3. Nc3 {[%clk 0:02:58.8]} 3... Nf6 {[%clk 0:02:49.2]}
4. Bg5 {[%clk 0:02:58.3]} 4... Bf5 {[%clk 0:02:46.6]} 5. Bxf6 {[%clk 0:02:57.2]}
5... gxf6 {[%clk 0:02:45.7]} 6. Nf3 {[%clk 0:02:52.7]} 6... e6 {[%clk
0:02:44.3]} 7. e3 {[%clk 0:02:48.6]} 7... Nd7 {[%clk 0:02:40.4]} 8. cxd5 {[%clk
0:02:47.8]} 8... exd5 {[%clk 0:02:35.9]} 9. Bd3 {[%clk 0:02:48.2]} 9... Bg6
{[%clk 0:02:34.3]} 10. Qc2 {[%clk 0:02:32.5]} 10... Bd6 {[%clk 0:02:31.9]} 11.
Bxg6 {[%clk 0:02:28.2]} 11... hxg6 {[%clk 0:02:30.4]} 12. O-O-O {[%clk
0:02:20.1]} 12... b5 {[%clk 0:02:26.3]} 13. e4 {[%clk 0:02:12.4]} 13... b4
{[%clk 0:02:18.9]} 14. Na4 {[%clk 0:01:55.3]} 14... Nb6 {[%clk 0:02:02.4]} 15.
Nc5 {[%clk 0:01:39.9]} 15... O-O {[%clk 0:01:41.3]} 16. e5 {[%clk 0:01:34.6]}
16... fxe5 {[%clk 0:01:34.4]} 17. dxe5 {[%clk 0:01:34.3]} 17... Bxc5 {[%clk
0:01:30.8]} 18. Qxc5 {[%clk 0:01:32.4]} 18... Nd7 {[%clk 0:01:24.8]} 19. Qxb4
{[%clk 0:01:24.7]} 19... Rb8 {[%clk 0:01:22.9]} 20. Qh4 {[%clk 0:01:16.1]} 20...
Qxh4 {[%clk 0:01:18.2]} 21. Nxh4 {[%clk 0:01:15.2]} 21... Nxe5 {[%clk
0:01:17.5]} 22. Rhe1 {[%clk 0:01:05.3]} 22... Nc4 {[%clk 0:01:10.2]} 23. b3
{[%clk 0:00:56.9]} 23... Nd6 {[%clk 0:01:07.1]} 24. Re7 {[%clk 0:00:51.5]} 24...
a5 {[%clk 0:01:00.9]} 25. Rd7 {[%clk 0:00:46.2]} 25... Ne4 {[%clk 0:00:56.5]}
26. f3 {[%clk 0:00:38.3]} 26... Nc3 {[%clk 0:00:54.4]} 27. Kb2 {[%clk
0:00:31.8]} 27... Nxd1+ {[%clk 0:00:52.2]} 28. Kc2 {[%clk 0:00:29.8]} 28... Ne3+
{[%clk 0:00:48.9]} 29. Kd3 {[%clk 0:00:28.2]} 29... Nf5 {[%clk 0:00:47.4]} 30.
Nxf5 {[%clk 0:00:26.7]} 30... gxf5 {[%clk 0:00:46.8]} 31. Rc7 {[%clk 0:00:24.8]}
31... Rfc8 {[%clk 0:00:45.2]} 32. Ra7 {[%clk 0:00:23.3]} 32... Ra8 {[%clk
0:00:44.8]} 33. Re7 {[%clk 0:00:21.4]} 33... a4 {[%clk 0:00:43.2]} 34. Re5
{[%clk 0:00:18.6]} 34... axb3 {[%clk 0:00:41.1]} 35. axb3 {[%clk 0:00:18.7]}
35... Ra3 {[%clk 0:00:39.8]} 36. Kc3 {[%clk 0:00:16.9]} 36... Rb8 {[%clk
0:00:37.5]} 37. Rxf5 {[%clk 0:00:15.8]} 37... Raxb3+ {[%clk 0:00:36.4]} 38. Kd4
{[%clk 0:00:15.1]} 38... R8b4+ {[%clk 0:00:33.9]} 39. Kc5 {[%clk 0:00:12.7]}
39... Rc4+ {[%clk 0:00:33]} 40. Kd6 {[%clk 0:00:12.5]} 40... d4 {[%clk
0:00:29.1]} 41. Rf4 {[%clk 0:00:02.8]} 41... Rcb4 {[%clk 0:00:18.4]} 42. Kxc6
{[%clk 0:00:02]} 42... d3 {[%clk 0:00:17]} 0-1

[Event "Betsys MČR v online bleskovém šachu 2021"]
[Site "Chess.com"]
[Date "2021.04.17"]
[Round "9"]
[White "zarathutra"]
[Black "CrisBenton4"]
[Result "1-0"]
[WhiteElo "1802"]
[BlackElo "1447"]
[TimeControl "180+1"]
[EndTime "10:30:54 PDT"]
[Termination "Uživatel zarathutra zvítězil na čas"]

1. d4 {[%clk 0:03:00.9]} 1... d5 {[%clk 0:02:59]} 2. c4 {[%clk 0:03:01]} 2... c6
{[%clk 0:02:59.4]} 3. Nc3 {[%clk 0:03:00.7]} 3... Nf6 {[%clk 0:02:59.7]} 4. e3
{[%clk 0:03:01]} 4... Bf5 {[%clk 0:02:59.7]} 5. cxd5 {[%clk 0:03:00.8]} 5...
cxd5 {[%clk 0:02:58.6]} 6. Qb3 {[%clk 0:03:00.9]} 6... e6 {[%clk 0:02:51.9]} 7.
Qxb7 {[%clk 0:03:00.3]} 7... Nbd7 {[%clk 0:02:51.1]} 8. Qb3 {[%clk 0:02:56.5]}
8... Rb8 {[%clk 0:02:48.6]} 9. Qd1 {[%clk 0:02:55.5]} 9... Be7 {[%clk
0:02:45.2]} 10. Nf3 {[%clk 0:02:55.1]} 10... O-O {[%clk 0:02:44.5]} 11. Be2
{[%clk 0:02:54.8]} 11... a5 {[%clk 0:02:42.3]} 12. O-O {[%clk 0:02:54.6]} 12...
Qc8 {[%clk 0:02:36.3]} 13. Nh4 {[%clk 0:02:49.3]} 13... Be4 {[%clk 0:02:25.9]}
14. f3 {[%clk 0:02:38.5]} 14... Bg6 {[%clk 0:02:24.8]} 15. Nxg6 {[%clk 0:02:38]}
15... hxg6 {[%clk 0:02:24.3]} 16. Na4 {[%clk 0:02:32.4]} 16... Bb4 {[%clk
0:02:13.3]} 17. Bd2 {[%clk 0:02:24.8]} 17... Qb7 {[%clk 0:01:59.3]} 18. Bxb4
{[%clk 0:02:22.2]} 18... Qxb4 {[%clk 0:01:56.6]} 19. b3 {[%clk 0:02:22.6]} 19...
Nb6 {[%clk 0:01:50.4]} 20. Nxb6 {[%clk 0:02:21.4]} 20... Qxb6 {[%clk 0:01:50]}
21. Qd3 {[%clk 0:02:17]} 21... Rfc8 {[%clk 0:01:45.8]} 22. Rfc1 {[%clk 0:02:16]}
22... Qb7 {[%clk 0:01:43.8]} 23. Qa6 {[%clk 0:02:07.3]} 23... Rxc1+ {[%clk
0:01:35.4]} 24. Rxc1 {[%clk 0:02:06.2]} 24... Qxa6 {[%clk 0:01:21.3]} 25. Bxa6
{[%clk 0:02:07.1]} 25... Ra8 {[%clk 0:01:18.5]} 26. Bb5 {[%clk 0:02:05.8]} 26...
Rb8 {[%clk 0:01:15.8]} 27. Ba4 {[%clk 0:02:05.3]} 27... Kh7 {[%clk 0:01:14.6]}
28. Kf2 {[%clk 0:02:04.8]} 28... Kh6 {[%clk 0:01:08.3]} 29. Rc5 {[%clk
0:02:03.5]} 29... Ra8 {[%clk 0:01:02.8]} 30. Rc7 {[%clk 0:01:57.6]} 30... Rf8
{[%clk 0:00:58.9]} 31. Ra7 {[%clk 0:01:55.8]} 31... Rc8 {[%clk 0:00:57.4]} 32.
Rxa5 {[%clk 0:01:44.5]} 32... Rc2+ {[%clk 0:00:56.8]} 33. Kg3 {[%clk 0:01:31.2]}
33... Nh5+ {[%clk 0:00:55.4]} 34. Kh3 {[%clk 0:01:31.4]} 34... Rxa2 {[%clk
0:00:54]} 35. Ra7 {[%clk 0:01:28.6]} 35... f6 {[%clk 0:00:50.4]} 36. Re7 {[%clk
0:01:24.3]} 36... e5 {[%clk 0:00:27.5]} 37. dxe5 {[%clk 0:01:20.5]} 37... fxe5
{[%clk 0:00:27]} 38. Rxe5 {[%clk 0:01:20.5]} 38... Nf6 {[%clk 0:00:25.7]} 39.
Bc6 {[%clk 0:01:10.3]} 39... Rd2 {[%clk 0:00:21.8]} 40. b4 {[%clk 0:01:07.5]}
40... d4 {[%clk 0:00:19.8]} 41. exd4 {[%clk 0:01:03.6]} 41... Rxd4 {[%clk
0:00:19.7]} 42. b5 {[%clk 0:01:02.9]} 42... Rd3 {[%clk 0:00:14.5]} 43. b6 {[%clk
0:01:01.1]} 43... Nh5 {[%clk 0:00:10.2]} 44. Rb5 {[%clk 0:00:51.2]} 44... Nf4+
{[%clk 0:00:09.5]} 45. Kg3 {[%clk 0:00:51.5]} 45... Nh5+ {[%clk 0:00:09.2]} 46.
Kf2 {[%clk 0:00:46.5]} 46... Rd2+ {[%clk 0:00:08.4]} 47. Ke3 {[%clk 0:00:46.6]}
47... Rd8 {[%clk 0:00:07]} 48. b7 {[%clk 0:00:45.7]} 48... Rb8 {[%clk
0:00:05.1]} 49. Re5 {[%clk 0:00:45.2]} 49... Nf6 {[%clk 0:00:04]} 50. Ra5 {[%clk
0:00:41.3]} 1-0

[Event "Betsys MČR v online bleskovém šachu 2021"]
[Site "Chess.com"]
[Date "2021.04.17"]
[Round "9"]
[White "tondapesek"]
[Black "lupinek23"]
[Result "0-1"]
[WhiteElo "1104"]
[BlackElo "1594"]
[TimeControl "180+1"]
[EndTime "10:30:54 PDT"]
[Termination "Uživatel lupinek23 zvítězil na čas"]

1. e4 {[%clk 0:03:00.9]} 1... d5 {[%clk 0:02:58.5]} 2. exd5 {[%clk 0:03:00.6]}
2... Nf6 {[%clk 0:02:57.8]} 3. Nc3 {[%clk 0:02:59.8]} 3... Nxd5 {[%clk
0:02:57.3]} 4. Nxd5 {[%clk 0:02:59]} 4... Qxd5 {[%clk 0:02:57.2]} 5. Nf3 {[%clk
0:02:58.8]} 5... Bg4 {[%clk 0:02:56.7]} 6. Be2 {[%clk 0:02:58.2]} 6... e6 {[%clk
0:02:55.9]} 7. d4 {[%clk 0:02:58.1]} 7... Bb4+ {[%clk 0:02:55.1]} 8. c3 {[%clk
0:02:57.7]} 8... Ba5 {[%clk 0:02:54.5]} 9. b4 {[%clk 0:02:56.6]} 9... Bb6 {[%clk
0:02:54.1]} 10. Be3 {[%clk 0:02:55.6]} 10... O-O {[%clk 0:02:51.6]} 11. O-O
{[%clk 0:02:55.4]} 11... Nd7 {[%clk 0:02:45.4]} 12. h3 {[%clk 0:02:55]} 12...
Bh5 {[%clk 0:02:44.3]} 13. Nd2 {[%clk 0:02:46.6]} 13... Bg6 {[%clk 0:02:32.9]}
14. Nf3 {[%clk 0:02:42.1]} 14... Nf6 {[%clk 0:02:31.6]} 15. Bd3 {[%clk
0:02:41.5]} 15... Ne4 {[%clk 0:02:30.9]} 16. Bxe4 {[%clk 0:02:40.7]} 16... Qxe4
{[%clk 0:02:30.3]} 17. Qd2 {[%clk 0:02:37]} 17... Rad8 {[%clk 0:02:27.7]} 18.
Ne5 {[%clk 0:02:35.8]} 18... f6 {[%clk 0:02:17.5]} 19. Nxg6 {[%clk 0:02:35.4]}
19... Qxg6 {[%clk 0:02:16.1]} 20. Qe2 {[%clk 0:02:33.1]} 20... e5 {[%clk
0:02:11.6]} 21. dxe5 {[%clk 0:02:31.4]} 21... Bxe3 {[%clk 0:02:11.1]} 22. Qxe3
{[%clk 0:02:30.4]} 22... fxe5 {[%clk 0:02:01.2]} 23. Qxe5 {[%clk 0:02:29.8]}
23... Rd3 {[%clk 0:01:55.7]} 24. Qxc7 {[%clk 0:02:19]} 24... Rxh3 {[%clk
0:01:51.8]} 25. Qc4+ {[%clk 0:02:11.9]} 25... Kh8 {[%clk 0:01:44.7]} 26. g3
{[%clk 0:01:59.4]} 26... h5 {[%clk 0:01:27]} 27. Qd5 {[%clk 0:01:38.1]} 27... h4
{[%clk 0:01:20.4]} 28. Qg2 {[%clk 0:01:31.8]} 28... Qf5 {[%clk 0:00:48.6]} 29.
gxh4 {[%clk 0:01:29.3]} 29... Rxh4 {[%clk 0:00:44.9]} 30. f3 {[%clk 0:00:57.8]}
30... Rf6 {[%clk 0:00:40.7]} 31. Kf2 {[%clk 0:00:46.3]} 31... Rg6 {[%clk
0:00:20.4]} 32. Qxg6 {[%clk 0:00:29.4]} 32... Qxg6 {[%clk 0:00:20.2]} 33. Rh1
{[%clk 0:00:26.9]} 33... Rxh1 {[%clk 0:00:19.5]} 34. Rxh1+ {[%clk 0:00:25.8]}
34... Kg8 {[%clk 0:00:19.6]} 35. Ke3 {[%clk 0:00:22.4]} 35... Qe6+ {[%clk
0:00:19.1]} 36. Kd2 {[%clk 0:00:20.5]} 36... Qd5+ {[%clk 0:00:18.5]} 37. Ke3
{[%clk 0:00:18.8]} 37... Qxa2 {[%clk 0:00:18.2]} 38. Rc1 {[%clk 0:00:13.9]}
38... Qb2 {[%clk 0:00:17.3]} 39. Rd1 {[%clk 0:00:06.4]} 39... Qxc3+ {[%clk
0:00:17]} 40. Rd3 {[%clk 0:00:06]} 40... Qe5+ {[%clk 0:00:17]} 41. Kf2 {[%clk
0:00:05]} 41... a5 {[%clk 0:00:15.8]} 42. bxa5 {[%clk 0:00:02.8]} 42... Qxa5
{[%clk 0:00:15.7]} 0-1

[Event "Betsys MČR v online bleskovém šachu 2021"]
[Site "Chess.com"]
[Date "2021.04.17"]
[Round "9"]
[White "handlovskyjachym"]
[Black "Emicka1330"]
[Result "1-0"]
[WhiteElo "1366"]
[BlackElo "1572"]
[TimeControl "180+1"]
[EndTime "10:30:56 PDT"]
[Termination "Uživatel handlovskyjachym zvítězil na čas"]

1. e4 {[%clk 0:03:00.9]} 1... d5 {[%clk 0:02:58.4]} 2. exd5 {[%clk 0:02:58.3]}
2... Nf6 {[%clk 0:02:57.7]} 3. d4 {[%clk 0:02:56.8]} 3... Nxd5 {[%clk 0:02:57]}
4. Nf3 {[%clk 0:02:53.6]} 4... g6 {[%clk 0:02:56.1]} 5. Bc4 {[%clk 0:02:53.4]}
5... Bg7 {[%clk 0:02:55.3]} 6. Bxd5 {[%clk 0:02:53.2]} 6... Qxd5 {[%clk
0:02:54.7]} 7. Nc3 {[%clk 0:02:52.8]} 7... Qa5 {[%clk 0:02:52]} 8. Bd2 {[%clk
0:02:50.1]} 8... O-O {[%clk 0:02:49.6]} 9. O-O {[%clk 0:02:46.8]} 9... Nc6
{[%clk 0:02:43.3]} 10. Re1 {[%clk 0:02:41]} 10... Qb4 {[%clk 0:02:31.5]} 11. Nd5
{[%clk 0:02:32.6]} 11... Qxb2 {[%clk 0:02:23.3]} 12. Nxe7+ {[%clk 0:02:31.1]}
12... Nxe7 {[%clk 0:02:11.3]} 13. Rxe7 {[%clk 0:02:30]} 13... Bf5 {[%clk
0:02:07.5]} 14. c3 {[%clk 0:02:15.8]} 14... c6 {[%clk 0:01:58.5]} 15. Nh4 {[%clk
0:02:10.3]} 15... Be6 {[%clk 0:01:51.4]} 16. Rb1 {[%clk 0:01:55.5]} 16... Qxa2
{[%clk 0:01:47.1]} 17. Rexb7 {[%clk 0:01:55.1]} 17... Qa3 {[%clk 0:01:27.3]} 18.
Ra1 {[%clk 0:01:47.5]} 18... Qd6 {[%clk 0:01:18.7]} 19. Rbxa7 {[%clk 0:01:46.6]}
19... Rxa7 {[%clk 0:01:17]} 20. Rxa7 {[%clk 0:01:45.7]} 20... Rb8 {[%clk
0:01:07.2]} 21. Ra1 {[%clk 0:01:42.3]} 21... Bf6 {[%clk 0:01:05.6]} 22. Nf3
{[%clk 0:01:41]} 22... Bg4 {[%clk 0:01:03]} 23. h3 {[%clk 0:01:27.3]} 23... Bf5
{[%clk 0:01:01.2]} 24. g4 {[%clk 0:01:03.5]} 24... Be4 {[%clk 0:00:57.9]} 25.
Qe2 {[%clk 0:01:02.3]} 25... Qd5 {[%clk 0:00:54.5]} 26. Ne5 {[%clk 0:00:51]}
26... Re8 {[%clk 0:00:27.3]} 27. Qc4 {[%clk 0:00:25.7]} 27... Bxe5 {[%clk
0:00:24.1]} 28. Qxd5 {[%clk 0:00:24.7]} 28... Bxd5 {[%clk 0:00:21.1]} 29. dxe5
{[%clk 0:00:22.6]} 29... h5 {[%clk 0:00:12.8]} 30. Re1 {[%clk 0:00:19.4]} 30...
Kg7 {[%clk 0:00:11.3]} 31. Kh2 {[%clk 0:00:18.5]} 31... Ra8 {[%clk 0:00:08.9]}
32. Kg3 {[%clk 0:00:17.7]} 32... Ra2 {[%clk 0:00:05.2]} 33. Be3 {[%clk
0:00:15.8]} 33... Rc2 {[%clk 0:00:04.6]} 34. Bd4 {[%clk 0:00:15.7]} 34... Rd2
{[%clk 0:00:03.8]} 35. Rf1 {[%clk 0:00:07.2]} 35... Rd3+ {[%clk 0:00:03.3]} 36.
Kh2 {[%clk 0:00:05.8]} 36... Rd2 {[%clk 0:00:02]} 37. g5 {[%clk 0:00:06]} 1-0